bitfinex/quotes_ETHUSD_20240717
["timestamp","ask_amount","ask_price","bid_price","bid_amount"]
[1721212212819,2.86106,3495.2,3494.6,1.005]
[1721212213288,2.86099,3495.3,3494.6,1.005]
[1721212213489,2.3903,3495.4,3494.8,1.005]
[1721212213725,8.25121,3495.4,3494.8,1.005]
[1721212213930,8.25121,3495.4,3494.6,1.005]
[1721212214137,8.25121,3495.4,3494.6,1.2755]
[1721212214489,2.4905,3495.7,3494.7,1.7]
[1721212214698,2.4905,3495.7,3495.1,1.005]
[1721212214948,3.8653,3496.2,3495.1,1.005]
[1721212214949,2.4905,3496.1,3495.5,1.005]
[1721212215723,2.4905,3496.1,3495.7,1.005]
[1721212216096,2.4905,3496.1,3495.5,1.005]
[1721212216296,2.4905,3496.1,3495.5,0.386593]
[1721212216608,2.4905,3496.1,3495.2,2.86104]
[1721212217145,2.4905,3496.1,3495.3,2.86098]
[1721212217744,0.03016129,3496.0,3495.3,2.86098]
[1721212218452,0.03016129,3496.0,3495.4,2.86088]
[1721212218622,0.03016129,3496.0,3495.3,2.86098]
[1721212218623,0.03016129,3496.0,3495.5,1.7]
[1721212218950,0.03016129,3496.0,3495.8,2.86056]
[1721212219159,2.4587,3496.9,3496.0,2.86039]
[1721212219450,2.4587,3497.3,3496.3,4.56015]
[1721212219952,2.4587,3497.3,3496.3,1.7]
[1721212220185,2.4587,3497.3,3496.3,2.682754]
[1721212220316,2.4587,3497.3,3496.3,0.982754]
[1721212220521,2.85945,3497.2,3496.0,2.86041]
[1721212221267,0.0285814,3497.1,3496.0,2.86041]
[1721212224270,0.0285814,3497.1,3496.1,2.86032]
[1721212227378,2.8881114,3497.1,3495.8,2.86055]
[1721212227677,2.4021,3497.0,3496.0,2.8604]
[1721212228051,2.4021,3497.0,3495.9,3.720188]
[1721212228252,2.88724359,3496.9,3495.9,3.720188]
[1721212228452,2.88724359,3496.9,3495.9,6.580638]
[1721212228453,0.02751359,3496.9,3495.9,6.580638]
[1721212228772,0.02751359,3496.9,3496.0,0.6580638]
[1721212230179,0.02751359,3496.9,3496.1,2.86027]
[1721212231048,0.02751359,3496.9,3496.0,3.5184138]
[1721212231441,0.02751359,3496.9,3496.1,2.86031]
[1721212232495,0.02751359,3496.9,3496.3,1.7]
[1721212232791,0.02751359,3496.9,3496.4,0.742055]
[1721212234219,0.02751359,3496.9,3496.5,2.85998]
[1721212235896,0.02751359,3496.9,3496.4,0.742055]
[1721212236081,0.02751359,3496.9,3496.3,1.7]
[1721212237679,0.02751359,3496.9,3496.0,10.9584038]
[1721212237977,0.02751359,3496.9,3496.0,8.0980638]
[1721212238614,2.3934,3496.8,3496.0,8.0980638]
[1721212239117,2.3934,3496.7,3496.0,7.44]
[1721212240494,2.85992,3496.6,3496.0,7.44]
[1721212240707,2.4407,3496.5,3496.0,7.44]
[1721212241228,2.4407,3496.3,3495.6,7.44]
[1721212241516,2.4407,3496.3,3495.6,8.184]
[1721212243176,2.4407,3496.3,3495.6,11.04473]
[1721212243581,2.4407,3496.3,3495.7,7.42125]
[1721212243821,2.377,3496.5,3495.9,2.86044]
[1721212244120,0.02612959,3496.2,3495.9,2.86044]
[1721212244408,2.377,3496.5,3496.0,0.742104]
[1721212244701,0.02624957,3496.4,3496.0,0.742104]
[1721212248315,0.02624957,3496.4,3495.6,7.44]
[1721212248495,2.3018,3496.3,3495.6,7.44]
[1721212248838,0.0261013,3496.2,3495.6,7.44]
[1721212249441,2.3018,3496.3,3495.6,7.44]
[1721212249631,0.02604131,3496.1,3495.6,7.44]
[1721212249805,2.3018,3496.3,3495.6,8.640091]
[1721212250736,0.0261013,3496.2,3495.6,8.640091]
[1721212251037,2.3018,3496.3,3495.6,8.640091]
[1721212251241,0.02604131,3496.1,3495.6,8.640091]
[1721212251413,2.3018,3496.3,3495.6,8.640091]
[1721212251615,2.3018,3496.3,3495.6,7.44]
[1721212251810,0.0261013,3496.2,3495.6,7.44]
[1721212252037,2.3018,3496.3,3495.6,7.44]
[1721212252232,0.02604131,3496.1,3495.6,7.44]
[1721212252439,2.3018,3496.3,3495.6,7.44]
[1721212252647,0.02598131,3496.0,3495.6,7.44]
[1721212252867,2.86009,3496.4,3495.6,8.640097]
[1721212252868,2.3526,3495.9,3495.6,8.640097]
[1721212253226,2.3526,3495.9,3495.6,1.200097]
[1721212254113,2.3526,3496.4,3495.6,4.060767]
[1721212254510,0.02608806,3496.3,3495.6,4.060767]
[1721212254737,0.02608806,3496.3,3495.7,0.6379267]
[1721212256109,2.3526,3496.4,3495.7,0.6379267]
[1721212260551,2.3526,3496.4,3495.4,0.59900655]
[1721212260725,2.86041,3496.0,3495.2,0.59900655]
[1721212260921,2.86041,3496.0,3495.3,2.48663445]
[1721212260922,2.4291,3495.9,3495.3,2.48663445]
[1721212261189,2.4291,3495.7,3495.2,4.0]
[1721212261462,0.02591407,3495.6,3495.1,7.44]
[1721212262076,2.415,3495.5,3495.1,7.44]
[1721212262724,0.02579897,3495.4,3495.1,7.44]
[1721212265264,0.02579897,3495.4,3494.6,8.932231]
[1721212265460,2.415,3495.5,3494.7,1.23928676]
[1721212265987,2.415,3495.5,3494.8,0.99476973]
[1721212266275,0.02562904,3495.4,3494.7,6.39145676]
[1721212266607,3.0,3495.8,3494.8,0.99475078]
[1721212266785,2.2517,3495.9,3494.9,2.86131]
[1721212266931,0.02583535,3495.7,3495.0,0.92527668]
[1721212267128,2.2517,3495.9,3495.0,0.92527668]
[1721212267129,0.02591829,3495.8,3495.0,0.92527668]
[1721212267479,0.0258817,3495.7,3495.0,0.92527668]
[1721212267673,2.2517,3495.9,3495.0,0.92527668]
[1721212267843,0.02596465,3495.8,3495.0,0.92527668]
[1721212268046,0.02596465,3495.8,3495.1,0.37865867]
[1721212272348,0.02596465,3495.8,3495.0,0.92527668]
[1721212272863,0.02596465,3495.8,3495.0,3.78649668]
[1721212273162,0.02570875,3495.7,3495.0,3.78649668]
[1721212273670,0.02564874,3495.6,3495.0,3.78649668]
[1721212273869,2.2517,3495.9,3495.0,3.78649668]
[1721212274079,0.02576876,3495.8,3495.1,0.37864967]
[1721212274644,3.02576876,3495.8,3495.1,0.37864967]
[1721212275244,3.02576876,3495.8,3495.2,2.86102]
[1721212275245,0.02576876,3495.8,3495.2,2.86102]
[1721212275466,0.02576876,3495.8,3495.3,2.4451]
[1721212275667,0.02570875,3495.7,3495.3,5.30603]
[1721212275882,0.02570875,3495.7,3495.4,0.56846797]
[1721212276089,2.3608,3496.2,3495.4,0.56846797]
[1721212276252,2.38967249,3496.2,3495.4,0.56846797]
[1721212276760,0.02887249,3496.2,3495.6,2.86068]
[1721212276964,0.02887249,3496.2,3495.7,0.5129148]
[1721212277161,3.0,3496.5,3495.7,0.5129148]
[1721212277375,5.4764,3496.6,3495.7,0.5129148]
[1721212277696,0.02702443,3496.5,3495.7,0.5129148]
[1721212277887,3.02702443,3496.5,3495.7,0.5129148]
[1721212278391,2.86013,3496.4,3495.4,0.56846797]
[1721212278569,2.2662,3496.2,3495.4,0.56846797]
[1721212278763,5.12651,3496.2,3495.0,7.44]
[1721212278968,2.3655,3496.1,3495.0,7.44]
[1721212279348,2.86041,3496.0,3495.0,7.44]
[1721212280088,2.86041,3496.0,3494.7,2.86143]
[1721212280089,2.86064,3495.8,3494.7,2.86143]
[1721212280384,2.3206,3495.7,3494.7,2.86143]
[1721212280599,2.3206,3495.7,3494.8,2.027723]
[1721212281087,5.18126,3495.7,3494.8,2.027723]
[1721212282086,5.18126,3495.7,3494.6,12.8542]
[1721212282270,5.18126,3495.7,3494.6,10.36]
[1721212282588,2.86098,3495.4,3494.6,7.44]
[1721212283590,2.86099,3495.3,3494.6,7.44]
[1721212283758,2.86099,3495.3,3494.2,9.8616]
[1721212283959,5.25547,3495.2,3494.3,0.88280412]
[1721212284159,5.25547,3495.2,3494.2,9.8616]
[1721212286769,5.25547,3495.2,3494.2,7.44]
[1721212289106,5.25547,3495.2,3494.1,2.8619]
[1721212289505,2.86124,3495.0,3494.0,1.49244174]
[1721212289769,5.25551,3495.2,3494.1,1.48802483]
[1721212290031,2.86115,3495.1,3494.1,1.48802483]
[1721212290581,2.3944,3495.2,3494.1,4.34997483]
[1721212290974,2.3944,3495.2,3494.2,2.86187]
[1721212291175,2.3944,3495.2,3494.4,2.4644]
[1721212292929,2.86116,3495.1,3494.3,0.87042896]
[1721212293217,2.86116,3495.1,3494.1,1.48802483]
[1721212298141,2.3944,3494.9,3494.1,1.48802483]
[1721212298434,5.25572,3494.9,3493.8,7.44]
[1721212298625,5.25572,3494.9,3493.7,2.86228]
[1721212298825,5.25572,3494.9,3493.8,2.86219]
[1721212299026,5.25572,3494.9,3493.9,0.95448217]
[1721212299630,5.25572,3494.9,3493.6,2.3277]
[1721212299631,2.358,3494.8,3493.6,5.19006]
[1721212299928,2.358,3494.8,3493.7,0.99506059]
[1721212300132,2.358,3494.8,3493.6,5.19006]
[1721212300298,2.8615,3494.7,3493.7,0.99506211]
[1721212300498,2.8615,3494.7,3493.6,5.19006]
[1721212300729,2.8615,3494.7,3493.7,2.8962149]
[1721212301037,2.8615,3494.7,3493.7,4.76340766]
[1721212301397,2.358,3494.8,3493.8,2.8622]
[1721212303386,2.358,3494.8,3493.9,2.86212]
[1721212303501,2.358,3494.8,3494.0,2.86204]
[1721212303705,2.358,3494.8,3494.1,0.742416]
[1721212304116,2.358,3494.8,3494.1,6.466206]
[1721212304519,2.358,3494.8,3494.1,3.604296]
[1721212304838,2.358,3494.8,3494.2,2.86185]
[1721212305839,2.358,3494.8,3494.3,2.86174]
[1721212306011,2.358,3494.8,3494.4,0.6466036]
[1721212307442,2.358,3494.8,3494.2,2.86183]
[1721212309318,2.358,3494.8,3494.0,2.86197]
[1721212309715,2.358,3494.8,3493.8,2.86216]
[1721212309829,2.3004,3494.7,3493.6,3.46130655]
[1721212310144,2.3004,3494.7,3493.7,0.99506837]
[1721212310329,2.3004,3494.7,3493.6,2.8623]
[1721212310517,2.3004,3494.7,3493.7,0.9950683]
[1721212310745,2.3004,3494.7,3493.6,5.46169114]
[1721212311247,2.3004,3494.7,3493.7,5.3499719]
[1721212311449,2.3004,3494.7,3493.7,2.86228]
[1721212311611,2.3004,3494.7,3493.6,5.46169114]
[1721212311817,2.3004,3494.7,3493.7,2.48768333]
[1721212312116,2.3004,3494.7,3493.6,5.46169114]
[1721212312317,2.3004,3494.7,3493.7,4.41600655]
[1721212312518,2.3004,3494.7,3493.7,1.92832277]
[1721212312717,2.3004,3494.7,3493.7,4.79060277]
[1721212313255,2.4792,3494.6,3493.6,2.59939114]
[1721212313923,2.4792,3494.6,3493.6,5.46171114]
[1721212314446,2.4792,3494.6,3493.6,2.59939114]
[1721212314848,2.4792,3494.6,3493.7,0.99510611]
[1721212315015,2.4792,3494.6,3493.8,2.86219]
[1721212315217,2.4792,3494.6,3493.9,0.54615811]
[1721212320264,2.4792,3494.6,3493.6,5.46171114]
[1721212320443,2.342,3494.5,3493.6,2.59939114]
[1721212320646,2.342,3494.5,3493.5,5.78245]
[1721212320855,2.342,3494.3,3493.5,2.92]
[1721212322220,2.4865,3494.2,3493.5,2.92]
[1721212322606,2.4883,3494.1,3493.5,2.92]
[1721212322723,2.4883,3494.1,3493.4,7.44]
[1721212323132,2.4883,3494.0,3493.4,7.44]
[1721212324525,2.86197,3494.1,3493.4,7.44]
[1721212324526,5.35047,3493.9,3493.4,7.44]
[1721212324777,2.4883,3493.8,3493.4,7.44]
[1721212324991,5.35051,3493.8,3493.4,7.44]
[1721212325141,2.4883,3493.7,3493.4,7.44]
[1721212327624,2.4883,3493.7,3492.9,7.44]
[1721212328083,2.4883,3493.7,3492.9,9.71619868]
[1721212328424,2.4883,3493.7,3493.0,5.35107797]
[1721212328677,2.4883,3493.7,3493.0,2.86286]
[1721212328955,2.4883,3493.7,3493.1,2.48813395]
[1721212329258,2.4883,3493.7,3493.0,2.86286]
[1721212329455,2.4883,3493.7,3493.1,2.84008945]
[1721212329676,2.4883,3493.7,3493.1,1.84480752]
[1721212330221,2.4883,3493.7,3492.9,12.12319868]
[1721212330470,2.4883,3493.7,3492.9,9.71619868]
[1721212330647,2.3542,3493.6,3492.9,7.44]
[1721212331030,2.86238,3493.6,3492.9,7.44]
[1721212331363,2.3542,3493.5,3492.9,7.44]
[1721212331560,2.3542,3493.5,3492.5,11.79643103]
[1721212331781,2.3542,3493.5,3492.6,0.99544167]
[1721212332056,5.21666,3493.5,3492.6,1.47610482]
[1721212333173,2.3435,3493.4,3492.6,1.47610482]
[1721212334641,2.3435,3493.4,3492.5,11.79642778]
[1721212334642,2.86262,3493.3,3492.5,7.44]
[1721212334960,2.3435,3493.2,3492.5,7.44]
[1721212336771,2.3435,3493.2,3492.6,2.86318]
[1721212343713,2.3435,3493.2,3492.7,2.86309]
[1721212343935,2.3435,3493.2,3492.8,4.179647]
[1721212344430,3.0,3493.8,3493.1,1.004]
[1721212344431,2.2595,3493.7,3493.1,1.004]
[1721212345458,2.2595,3493.7,3493.0,1.004]
[1721212347434,2.2595,3493.7,3493.2,1.004]
[1721212348336,2.2595,3493.7,3493.2,1.31589063]
[1721212348587,2.2595,3493.7,3493.6,1.004]
[1721212348743,2.463,3494.1,3493.6,1.004]
[1721212352205,2.463,3494.1,3493.3,2.86255]
[1721212352514,2.463,3494.1,3493.5,2.86245]
[1721212353728,2.463,3494.1,3493.3,1.55689491]
[1721212353930,2.463,3494.1,3493.4,2.86249]
[1721212356353,2.463,3494.1,3493.4,5.72498]
[1721212356843,2.463,3494.1,3493.2,0.31189063]
[1721212357046,2.463,3494.1,3493.0,10.30279]
[1721212357047,2.463,3494.1,3493.0,10.90179655]
[1721212357342,2.463,3494.1,3493.1,2.48815923]
[1721212357545,3.0,3494.4,3493.0,7.44]
[1721212357546,2.4053,3493.8,3493.0,7.44]
[1721212357765,2.4053,3493.6,3492.7,7.44]
[1721212358065,2.4053,3493.6,3492.7,1.99929664]
[1721212358478,2.4053,3493.6,3492.8,0.99539391]
[1721212358629,2.4053,3493.6,3492.7,4.86233664]
[1721212358825,2.4053,3493.6,3492.8,0.99537908]
[1721212359075,2.4053,3493.6,3492.7,4.86233664]
[1721212359870,2.4053,3493.6,3492.8,2.86302]
[1721212360366,2.4053,3493.6,3492.7,1.99929664]
[1721212360536,2.4053,3493.6,3492.8,0.99541155]
[1721212360738,2.4053,3493.6,3492.7,4.86238664]
[1721212361043,5.2677,3493.6,3492.6,2.92]
[1721212361244,2.4471,3493.3,3492.7,0.99542286]
[1721212361456,2.4471,3493.3,3492.6,2.92]
[1721212362640,2.4471,3493.3,3492.7,0.99546873]
[1721212362874,2.4471,3493.3,3492.6,2.92]
[1721212363566,2.4471,3493.3,3492.7,0.9954644]
[1721212363771,2.4471,3493.3,3492.6,2.92]
[1721212363993,2.4471,3493.3,3492.7,0.99546958]
[1721212364275,2.4471,3493.3,3492.6,2.92]
[1721212364456,2.4471,3493.3,3492.7,0.99546511]
[1721212364653,2.4471,3493.3,3492.6,2.92]
[1721212364853,2.4471,3493.3,3492.7,0.9954697]
[1721212365054,2.4471,3493.3,3492.6,2.92]
[1721212365263,2.4471,3493.3,3492.7,0.99546966]
[1721212365461,2.4471,3493.3,3492.6,2.92]
[1721212365661,2.4471,3493.3,3492.7,2.48867428]
[1721212365863,2.4471,3493.3,3492.6,2.92]
[1721212366171,2.4471,3493.3,3492.7,2.48867393]
[1721212366371,2.4471,3493.3,3492.6,2.92]
[1721212366578,2.4471,3493.3,3492.7,2.48867395]
[1721212366735,2.4471,3493.3,3492.6,2.92]
[1721212367038,2.4471,3493.3,3492.7,2.48867353]
[1721212367240,2.4471,3493.3,3492.6,2.92]
[1721212367474,2.86259,3493.4,3492.4,8.03900655]
[1721212367475,5.31121,3493.2,3492.4,8.03900655]
[1721212367786,2.4485,3493.1,3492.5,0.99555079]
[1721212367981,5.31133,3493.1,3492.1,0.59900655]
[1721212368188,2.4485,3493.0,3492.2,3.08799945]
[1721212368581,2.4485,3493.0,3492.0,11.20216983]
[1721212368582,2.4485,3492.9,3492.0,10.90266655]
[1721212368659,2.4485,3492.9,3492.1,2.48909758]
[1721212368855,2.4485,3492.9,3492.0,2.86368]
[1721212369157,2.4485,3492.9,3492.1,0.99565029]
[1721212369384,5.31145,3492.9,3491.9,0.59900655]
[1721212369636,2.3121,3492.8,3492.0,2.48912795]
[1721212369775,2.3121,3492.8,3492.1,0.99565118]
[1721212370086,2.3121,3492.8,3491.9,3.46276655]
[1721212370286,2.3121,3492.8,3492.0,4.15475259]
[1721212370471,2.3121,3492.8,3492.1,0.99564266]
[1721212370673,2.3121,3492.8,3491.9,2.86376]
[1721212370854,2.3121,3492.8,3492.0,0.99565117]
[1721212371058,2.3121,3492.8,3491.8,3.46284655]
[1721212371390,2.86313,3492.7,3491.9,2.48917026]
[1721212371577,3.0,3493.4,3491.7,7.44]
[1721212371578,2.4498,3493.1,3491.7,7.44]
[1721212371785,2.4498,3492.3,3491.7,7.44]
[1721212372256,5.31324,3492.3,3491.7,7.44]
[1721212372483,2.86344,3492.3,3491.7,7.44]
[1721212372793,2.4498,3492.2,3491.3,7.44]
[1721212372974,2.4498,3492.2,3491.3,1.37676866]
[1721212377811,2.2507,3492.1,3491.2,2.86429]
[1721212378005,2.2507,3492.1,3491.0,7.44]
[1721212378384,5.11779,3491.9,3491.0,7.44]
[1721212378593,2.254,3491.8,3491.0,7.44]
[1721212379189,2.3256,3491.6,3491.0,7.44]
[1721212379511,5.18962,3491.6,3491.0,7.44]
[1721212379671,2.3256,3491.5,3491.0,7.44]
[1721212379857,2.3256,3491.5,3490.4,2.86493]
[1721212379858,2.3256,3491.5,3490.6,7.44]
[1721212380169,2.3256,3491.5,3490.4,2.86493]
[1721212380170,2.3256,3491.4,3490.4,2.86494]
[1721212380391,5.18978,3491.4,3490.5,1.317006]
[1721212380606,5.18978,3491.4,3490.3,7.44]
[1721212380607,2.3256,3491.3,3490.3,7.44]
[1721212380916,2.86418,3491.4,3490.0,0.44902967]
[1721212380917,2.3662,3491.1,3490.1,2.86524]
[1721212381074,2.3662,3491.1,3490.1,6.86524]
[1721212381281,2.3662,3491.1,3490.1,2.86524]
[1721212382383,2.4982,3491.1,3489.7,1.7]
[1721212382585,2.86468,3490.8,3489.8,4.0]
[1721212382930,2.86466,3490.9,3489.8,2.86548]
[1721212383357,2.4698,3490.8,3489.7,1.7]
[1721212383556,5.33448,3490.8,3489.8,2.00510427]
[1721212383759,5.33448,3490.8,3489.6,10.30559]
[1721212383966,5.33448,3490.8,3489.5,5.72375265]
[1721212383967,5.33448,3490.8,3489.7,2.86554]
[1721212384410,2.86476,3490.7,3489.5,5.27466]
[1721212384621,2.3561,3490.6,3489.5,5.27466]
[1721212385004,2.3561,3490.6,3489.6,2.86565]
[1721212385165,2.3561,3490.6,3489.7,0.814046]
[1721212386109,2.86492,3490.5,3489.4,2.86581]
[1721212386275,2.3986,3490.4,3489.4,2.86581]
[1721212386899,2.3986,3490.4,3489.3,10.30589]
[1721212387296,5.26361,3490.4,3489.3,10.30589]
[1721212387521,5.26361,3490.4,3489.4,2.60550581]
[1721212387698,5.26361,3490.4,3489.3,2.86589]
[1721212388099,5.26361,3490.4,3489.4,2.86582]
[1721212388432,5.26361,3490.4,3489.3,2.8659]
[1721212389317,2.2883,3490.3,3489.3,2.8659]
[1721212390384,2.2883,3490.3,3489.4,2.86581]
[1721212390584,2.2883,3490.3,3489.5,0.578581]
[1721212390787,2.2883,3490.3,3489.5,3.444301]
[1721212392290,2.2883,3490.3,3489.5,0.578581]
[1721212398426,2.2883,3490.3,3489.7,1.006]
[1721212398631,2.2883,3490.3,3489.5,1.006]
[1721212398833,2.2883,3490.3,3489.2,5.78596]
[1721212398834,2.86523,3490.2,3489.3,1.006]
[1721212398996,2.86523,3490.2,3489.2,2.92]
[1721212398997,2.3269,3490.0,3489.2,3.926]
[1721212399343,2.3269,3490.0,3489.2,1.006]
[1721212399644,2.3269,3490.0,3489.0,7.44]
[1721212399645,2.3278,3489.7,3489.0,7.44]
[1721212399797,2.3278,3489.7,3489.1,1.006]
[1721212400299,2.86557,3489.7,3489.0,7.44]
[1721212400497,2.3278,3489.6,3489.0,7.44]
[1721212401340,2.3278,3489.6,3489.1,0.744]
[1721212402739,1.72991201,3489.6,3489.1,0.744]
[1721212407097,1.72991201,3489.6,3489.1,0.744]
[1721212412027,1.72991201,3489.6,3489.1,0.831473]
[1721212414237,1.72991201,3489.6,3489.1,0.087473]
[1721212416309,2.4678,3489.5,3489.1,0.087473]
[1721212420538,2.4249,3489.8,3489.3,1.006]
[1721212420737,2.4249,3490.3,3489.8,1.006]
[1721212420967,2.4249,3490.3,3490.0,1.006]
[1721212421133,2.4249,3490.3,3490.2,1.006]
[1721212421661,2.4249,3490.3,3490.0,1.006]
[1721212425964,2.4249,3490.3,3489.8,3.87148]
[1721212426369,2.4249,3490.3,3489.8,1.006]
[1721212426583,2.4249,3490.3,3489.6,1.006]
[1721212426781,2.4249,3490.3,3489.4,10.90479655]
[1721212427004,2.4249,3490.3,3489.5,7.62822567]
[1721212427283,2.4249,3490.3,3489.5,5.13730539]
[1721212427487,2.4249,3490.3,3489.5,3.87171]
[1721212427653,2.4249,3490.3,3489.5,1.006]
[1721212427849,2.4249,3490.3,3489.4,7.44]
[1721212427850,2.4396,3490.3,3489.4,7.44]
[1721212428078,2.4396,3490.1,3489.4,7.44]
[1721212428282,2.4396,3490.0,3489.4,7.44]
[1721212431143,2.4396,3490.0,3489.4,8.53925396]
[1721212432297,2.4396,3490.0,3489.4,1.09925396]
[1721212432786,2.4396,3490.0,3489.4,2.86576]
[1721212433208,2.4396,3490.0,3489.6,2.86563]
[1721212433350,2.498,3490.4,3489.7,2.86557]
[1721212434407,2.498,3490.4,3489.9,2.8654]
[1721212434564,2.498,3490.4,3489.9,3.438497]
[1721212437056,2.498,3490.4,3489.9,0.573097]
[1721212438276,2.498,3490.4,3489.9,3.438497]
[1721212440413,2.498,3490.4,3489.9,0.573097]
[1721212441402,2.498,3490.4,3489.7,2.86551]
[1721212442292,2.498,3490.4,3489.8,3.86170086]
[1721212442608,2.498,3490.4,3489.7,2.86551]
[1721212442779,2.498,3490.4,3489.8,0.99627092]
[1721212443116,2.498,3490.4,3489.7,2.8655]
[1721212443608,2.498,3490.4,3489.7,7.34620366]
[1721212443776,2.498,3490.4,3489.8,2.86548]
[1721212444662,2.3302,3490.8,3489.8,2.4149]
[1721212444876,2.86394,3491.7,3490.5,2.86488]
[1721212445080,2.42353588,3491.6,3490.7,2.86472]
[1721212445283,2.3302,3491.6,3490.7,5.27972]
[1721212445541,2.3302,3491.6,3490.9,2.86458]
[1721212445980,2.3302,3491.6,3490.9,2.86451]
[1721212446187,2.3302,3491.6,3490.7,5.27972]
[1721212446868,2.429,3491.5,3490.5,3.392838]
[1721212447104,2.429,3491.5,3490.5,2.86485]
[1721212447617,5.429,3491.5,3490.5,2.86485]
[1721212449342,5.429,3491.5,3490.5,5.7297]
[1721212449547,5.429,3491.5,3490.6,2.86481]
[1721212452023,5.429,3491.5,3490.3,5.28005]
[1721212452024,2.3238,3491.4,3490.3,5.28005]
[1721212452225,2.3238,3491.3,3490.4,2.86499]
[1721212452537,2.3238,3491.3,3490.5,2.86491]
[1721212454829,2.3238,3491.3,3490.6,2.86483]
[1721212455511,2.3238,3491.3,3490.5,2.86491]
[1721212455709,2.3238,3491.3,3490.5,4.5962599]
[1721212457939,2.3238,3491.3,3490.8,2.86461]
[1721212458540,2.3238,3491.3,3490.9,5.72907]
[1721212458728,2.3238,3491.3,3490.9,2.86451]
[1721212464418,2.3238,3491.3,3491.2,1.005]
[1721212465327,2.3238,3491.3,3491.0,1.005]
[1721212467928,2.3238,3491.3,3490.6,1.005]
[1721212468758,2.86428,3491.3,3490.8,1.005]
[1721212469051,2.385,3491.2,3490.8,1.005]
[1721212471242,5.24934,3491.2,3490.8,1.005]
[1721212471647,2.4182,3491.1,3490.8,1.005]
[1721212477573,5.28264,3491.1,3490.8,1.005]
[1721212481984,3.0,3491.4,3490.0,0.59900655]
[1721212482291,3.0,3491.4,3489.7,1.19949373]
[1721212482292,2.3243,3490.3,3489.7,1.005]
[1721212482458,2.86468,3490.8,3489.7,1.005]
[1721212482459,2.86539,3490.0,3489.7,1.005]
[1721212482659,2.86542,3489.9,3489.7,1.005]
[1721212482859,2.3078,3489.8,3489.7,1.005]
[1721212483101,2.3078,3489.8,3489.2,10.36]
[1721212483102,2.3078,3489.8,3489.5,1.005]
[1721212483957,2.3078,3489.8,3489.7,1.005]
[1721212484163,5.12854,3490.1,3489.7,1.005]
[1721212484380,5.12854,3490.1,3489.2,15.2058]
[1721212484565,5.12854,3490.1,3489.3,2.16244096]
[1721212485962,2.2633,3490.1,3489.3,5.02828096]
[1721212486698,2.2633,3490.1,3489.4,2.86578]
[1721212486901,2.86492,3490.5,3489.4,2.86578]
[1721212486902,3.0,3490.4,3489.6,2.86559]
[1721212487203,3.0,3490.4,3489.7,0.573137]
[1721212487362,5.4698,3490.5,3489.7,0.573137]
[1721212489771,2.86508,3490.4,3489.3,2.16244096]
[1721212489971,3.0,3490.3,3489.3,2.16244096]
[1721212490223,5.8651,3490.3,3489.3,5.02829096]
[1721212491485,3.0,3490.3,3489.4,2.8658]
[1721212491668,3.0,3490.4,3489.4,2.8658]
[1721212491873,5.865,3490.4,3489.5,2.3099891]
[1721212495278,2.86509,3490.3,3489.5,2.3099891]
[1721212496410,2.4697,3490.2,3489.3,2.86583]
[1721212499316,2.86509,3490.3,3489.3,2.86583]
[1721212500985,2.86509,3490.3,3489.3,5.73166]
[1721212502023,2.86509,3490.3,3489.4,2.86581]
[1721212502985,3.0,3490.4,3489.4,2.86581]
[1721212503295,5.17217,3491.2,3490.1,2.86522]
[1721212503596,2.3078,3491.2,3490.2,2.86515]
[1721212503796,2.86429,3491.3,3490.3,2.3279]
[1721212503994,2.86429,3491.3,3490.4,0.805827]
[1721212504197,2.3078,3491.6,3490.5,2.86487]
[1721212504428,2.3078,3491.6,3490.6,2.86478]
[1721212505593,5.17182,3491.6,3490.6,2.86478]
[1721212505817,3.0,3491.5,3490.5,2.86489]
[1721212506102,2.86427,3491.3,3490.2,2.86511]
[1721212506410,2.86443,3491.1,3489.9,2.2525]
[1721212506600,5.27932,3491.0,3489.9,5.11791]
[1721212506935,2.86467,3490.8,3489.7,4.35985876]
[1721212507144,2.86467,3490.8,3489.8,2.86548]
[1721212507504,3.0,3490.7,3489.6,1.494301]
[1721212507698,3.0,3490.7,3489.5,8.70631996]
[1721212507911,2.86501,3490.4,3489.4,1.49437977]
[1721212508113,5.20649,3490.3,3489.5,0.99626588]
[1721212508342,5.20649,3490.3,3489.2,2.92]
[1721212508932,5.20649,3490.3,3489.3,2.8659]
[1721212509834,5.20649,3490.3,3489.2,2.92]
[1721212510019,5.20649,3490.3,3489.3,2.17694875]
[1721212510328,2.86516,3490.2,3489.3,1.18059396]
[1721212510531,2.86516,3490.2,3489.2,2.92]
[1721212510722,2.86516,3490.2,3489.3,0.9963589]
[1721212510925,2.86516,3490.2,3489.2,2.92]
[1721212511098,2.3414,3490.3,3489.3,0.99635921]
[1721212511302,2.86518,3490.2,3489.2,5.78597]
[1721212511502,2.86525,3490.1,3489.3,1.64360219]
[1721212511799,2.86525,3490.1,3489.3,0.64724496]
[1721212515341,2.86534,3490.0,3489.3,0.64724496]
[1721212515637,2.86534,3490.0,3489.2,2.92]
[1721212516030,2.86541,3489.9,3489.2,2.92]
[1721212516233,2.86541,3489.9,3489.1,0.087473]
[1721212517154,2.86525,3490.1,3489.1,0.087473]
[1721212517303,5.20652,3490.3,3489.3,2.86582]
[1721212517304,5.20654,3490.3,3489.3,2.86582]
[1721212517500,5.20654,3490.3,3489.5,2.86573]
[1721212517501,2.3414,3490.3,3489.5,2.86573]